[Event "Turkey IS Bank Super League 2017"]
[Site "Darica-Kocaeli"]
[Date "2017.08.06"]
[Round "13"]
[White "Karavade, Eesha"]
[Black "Ozturk, Kubra"]
[Result "1/2-1/2"]
[ECO "C42"]
[WhiteElo "2397"]
[BlackElo "2298"]
[Annotator "NA"]
[PlyCount "66"]
[EventType "team-tourn"]
[EventCountry "TUR"]
[SourceTitle "playchess.com"]
[Source "ChessBase"]
[SourceQuality "1"]
[TimeControl "40/5400+30:1800+30"]

{[%evp 15,64,13,32767,32767,8,5,7,8,32767,0,12,0,-12,-12,-10,-13,-9,-16,-15,-10,-22,-21,-19,-21,32767,32767,-18,-37,-24,-28,-24,-20,-13,-21,-14,-28,-18,-50,-16,-19,-16,-17,-16,-13,-7,-22,32767,32767,32767,32767,-12]} 1. e4 {[%emt 0:00:30]} e5 {[%emt 0:01:00]} 2. Nc3 {[%emt 0:00:30]} Nf6 {[%emt 0:00:30]} 3. Bc4 {[%emt 0:00:30]} Nxe4 {[%emt 0:00:00]} 4. Qh5 {[%emt 0:02:30]} Nd6 {[%emt 0:01:00]} 5. Qxe5+ {[%emt 0:01:30]} Qe7 {[%emt 0:00:30]} 6. Qxe7+ {[%emt 0:00:30]} Bxe7 {[%emt 0:00:30]} 7. Bb3 {[%emt 0:00:00]} O-O {[%emt 0:00:30]} 8. Nf3 {[%emt 0:00:00]} Nf5 {[%emt 0:03:30] C42: Petroff Defence: 3 Nxe5 and unusual White 3rd moves} 9. O-O {[%emt 0:00:30]} c6 {[%emt 0:03:30]} 10. Re1 {[%emt 0:02:30]} d5 {[%emt 0:02:30] LiveBook: 3 Games} 11. Ne2 {[%emt 0:02:30]} Nh4 $146 {[%emt 0:05:30]} ({Predecessor:} 11... Re8 12. c3 Nd7 13. Bc2 Nf8 14. d4 Nh4 15. Nxh4 Bxh4 16. a4 {½-½ (34) Harika,D (2542)-Muzychuk,A (2550) Baku 2016}) 12. Nxh4 {[%emt 0:07:30]} Bxh4 {[%emt 0:00:30]} 13. d4 {[%emt 0:02:30]} Bf5 {[%emt 0:00:30]} 14. Ng3 {[%emt 0:00:30]} Bg6 {[%emt 0:00:30]} 15. Bf4 {[%emt 0:01:30]} Nd7 {[%emt 0:02:30]} 16. Re2 {[%emt 0:04:30]} Rfe8 {[%emt 0:07:30]} 17. Rae1 {[%emt 0:00:30]} Rxe2 {[%emt 0:00:30]} 18. Rxe2 {[%emt 0:00:30]} Nf8 {[%emt 0:00:30]} 19. c3 {[%emt 0:02:30]} Ne6 {[%emt 0:02:30]} 20. Bc1 {[%emt 0:00:30]} Bd3 {[%emt 0:06:30]} 21. Re3 {[%emt 0:06:30]} Bg5 {[%emt 0:05:30]} 22. Re1 {[%emt 0:02:30]} Bxc1 {[%emt 0:02:30]} 23. Rxc1 {[%emt 0:00:30]} Nf4 {[%emt 0:00:00]} 24. Re1 {[%emt 0:00:30]} Kf8 {[%emt 0:00:00]} 25. Bd1 {[%emt 0:06:30]} Re8 {[%emt 0:07:30]} 26. Rxe8+ {[%emt 0:01:30]} Kxe8 {[%emt 0:00:00]} 27. Nh5 {[%emt 0:00:30]} Ne6 {[%emt 0:09:00]} 28. f3 {[%emt 0:00:30]} g6 {[%emt 0:05:30]} 29. Nf6+ {[%emt 0:01:30]} Ke7 {[%emt 0:00:30]} 30. Ng4 {[%emt 0:00:00]} Bb1 {[%emt 0:03:30]} 31. a3 {[%emt 0:01:00]} Nf4 {[%emt 0:04:30]} 32. Nf2 {[%emt 0:00:30]} Kd6 $11 {[%emt 0:02:30]} 33. g3 {[%emt 0:01:30]} Nd3 {[%emt 0:00:30]} 1/2-1/2

[Event "Turkey IS Bank Super League 2017"]
[Site "Darica-Kocaeli"]
[Date "2017.08.06"]
[Round "13"]
[White "Nomin-Erdene, Davaademberel"]
[Black "Osmak, Iulija"]
[Result "0-1"]
[ECO "C12"]
[WhiteElo "2373"]
[BlackElo "2353"]
[Annotator "NA"]
[PlyCount "90"]
[EventType "team-tourn"]
[EventCountry "TUR"]
[SourceTitle "playchess.com"]
[Source "ChessBase"]
[SourceQuality "1"]
[TimeControl "40/5400+30:1800+30"]

{[%evp 9,68,0,0,0,-19,-25,32767,32767,32767,32767,32767,32767,10,0,16,0,0,0,19,18,28,16,32767,40,73,46,78,52,95,63,108,104,107,87,118,111,109,32767,109,32767,195,32767,110,120,127,12,14,32767,32767,0,0,-28,-5,32767,-14,32767,32767,-58,-38,-63,-82]} 1. e4 {[%emt 0:00:30]} e6 {[%emt 0:01:00]} 2. d4 {[%emt 0:00:30]} d5 {[%emt 0:00:30]} 3. Nc3 {[%emt 0:00:30]} Nf6 {[%emt 0:00:30]} 4. Bg5 {[%emt 0:00:00]} Bb4 {[%emt 0:00:00]} 5. e5 {[%emt 0:00:00]} h6 {[%emt 0:00:00]} 6. Be3 {[%emt 0:00:30]} Ne4 {[%emt 0:00:00]} 7. Qg4 {[%emt 0:00:00]} g6 {[%emt 0:03:00]} 8. a3 {[%emt 0:00:00]} Bxc3+ {[%emt 0:00:30]} 9. bxc3 {[%emt 0:00:30]} c5 {[%emt 0:00:30]} 10. Bd3 {[%emt 0:13:30] C12: French: Classical System: McCutcheon Variation} h5 {[%emt 0:06:30]} (10... Nxc3 11. dxc5 Nc6 12. Nf3 Qa5 13. O-O Qa4 14. Qxa4 Nxa4 15. Bb5 Nc3 16. a4 Bd7 17. Ra3 Ne4 {½-½ (74) Ponkratov,P (2605)-Nguyen,N (2625) Khanty-Mansiysk 2013}) 11. Qf3 {[%emt 0:07:30]} Nxc3 {[%emt 0:01:30] LiveBook: 8 Games} 12. dxc5 {[%emt 0:00:30]} d4 {[%emt 0:02:30]} 13. Bd2 {[%emt 0:01:30]} Nc6 {[%emt 0:02:30]} 14. Bxc3 {[%emt 0:03:30]} dxc3 {[%emt 0:01:30]} 15. Qe3 {[%emt 0:01:30]} Qd4 $146 {[%emt 0:14:30]} ({Predecessor:} 15... Bd7 16. Nf3 Ne7 17. Be4 Qc7 {½-½ (37) Volkov,A (2107)-Aguirre Inchaurbe,P (1917) LSS email 2012}) 16. Qxd4 $1 {[%emt 0:04:30]} Nxd4 {[%emt 0:00:00]} 17. O-O-O {[%emt 0:05:30]} Nc6 {[%emt 0:16:00]} 18. f4 {[%emt 0:00:30]} g5 {[%emt 0:07:30]} (18... Ke7 $11) 19. g3 {[%emt 0:02:30]} Bd7 {[%emt 0:03:30] [#]} 20. Ne2 $1 {[%emt 0:00:30]} gxf4 {[%emt 0:01:30]} 21. gxf4 {[%emt 0:00:30]} Ne7 {[%emt 0:00:00]} 22. Nxc3 {[%emt 0:00:30]} Bc6 {[%emt 0:00:00]} 23. Be4 {[%emt 0:01:30]} Rd8 {[%emt 0:04:30]} 24. Bxc6+ {[%emt 0:02:30]} bxc6 {[%emt 0:03:30]} (24... Nxc6 $16 25. Rxd8+ Kxd8) 25. Ne4 {[%emt 0:00:30]} Rxd1+ {[%emt 0:00:30]} 26. Rxd1 {[%emt 0:00:30]} Nd5 {[%emt 0:00:30]} 27. c4 {[%emt 0:01:30]} ({White should try} 27. Nd6+ $16 Kf8 28. Nc8) 27... Nxf4 {[%emt 0:00:30]} 28. Nf6+ {[%emt 0:10:30]} Kf8 {[%emt 0:00:30]} 29. Rd8+ {[%emt 0:05:30]} Kg7 {[%emt 0:00:30]} 30. Rd6 {[%emt 0:00:30]} h4 {[%emt 0:08:30]} 31. Nd7 {[%emt 0:03:30]} Rc8 {[%emt 0:00:30]} 32. Kd2 {[%emt 0:05:30]} Kg6 {[%emt 0:01:30]} 33. Ke3 {[%emt 0:01:30]} (33. Nb6 $11 Rg8 34. Rxc6) 33... Kf5 {[%emt 0:00:30]} 34. Rd4 $15 {[%emt 0:02:30] [#]} Ng2+ $1 {[%emt 0:00:00]} 35. Kf3 {[%emt 0:10:20]} h3 {[%emt 0:00:00]} 36. a4 {[%emt 0:02:58]} Rc7 {[%emt 0:03:30]} 37. Kg3 {[%emt 0:02:22]} Rb7 {[%emt 0:03:25]} 38. Rd2 {[%emt 0:08:46]} Rb3+ {[%emt 0:01:40]} 39. Kf2 {[%emt 0:00:06]} Ne3 {[%emt 0:01:41]} 40. Ke1 {[%emt 0:00:00]} Ng4 {[%emt 0:02:14]} 41. Kd1 {[%emt 0:10:58]} Rb1+ {[%emt 0:08:30]} 42. Kc2 {[%emt 0:00:30]} Rh1 {[%emt 0:00:00]} 43. Nb8 {[%emt 0:00:30]} Rxh2 {[%emt 0:00:00]} 44. Rxh2 {[%emt 0:02:30]} Nxh2 {[%emt 0:00:30]} 45. Nxc6 {[%emt 0:00:30]} Nf3 {[%emt 0:00:00]} 0-1

[Event "Turkey IS Bank Super League 2017"]
[Site "Darica-Kocaeli"]
[Date "2017.08.06"]
[Round "13"]
[White "Kerigan, Demre"]
[Black "Ertan, Can"]
[Result "0-1"]
[ECO "C28"]
[WhiteElo "2354"]
[BlackElo "2377"]
[Annotator "NA"]
[PlyCount "74"]
[EventType "team-tourn"]
[EventCountry "TUR"]
[SourceTitle "playchess.com"]
[Source "ChessBase"]
[SourceQuality "1"]
[TimeControl "40/5400+30:1800+30"]

1. e4 {[%emt 0:00:30]} e5 {[%emt 0:01:00]} 2. Bc4 {[%emt 0:00:30]} Nc6 {[%emt 0:00:30]} 3. d3 {[%emt 0:00:30]} Nf6 {[%emt 0:02:30]} 4. Nc3 {[%emt 0:00:30]} Na5 {[%emt 0:02:30]} 5. Nge2 {[%emt 0:02:30]} Bc5 {[%emt 0:05:30]} 6. O-O {[%emt 0:05:30] C28: Vienna Game: 2...Nf6 3 Bc4 Nc6} c6 {[%emt 0:16:30]} (6... O-O 7. a4 Nxc4 8. dxc4 a5 9. Qd3 d6 10. b3 Be6 11. Be3 Nd7 12. Rad1 f5 13. f4 b6 {½-½ (28) Carlsen,M (2855)-Giri,A (2782) Paris 2016}) 7. a3 {[%emt 0:07:30]} Nxc4 {[%emt 0:04:30]} 8. dxc4 {[%emt 0:00:30]} h6 {[%emt 0:05:30]} 9. Qd3 {[%emt 0:02:30]} Qc7 $146 {[%emt 0:14:30]} ({Predecessor:} 9... O-O 10. Qg3 Kh7 11. Qxe5 d6 12. Qg3 Re8 13. Qd3 Ng4 {0-1 (31) Lazar,J (2155)-Piroska,I (2195) Hungary 2011}) 10. Be3 {[%emt 0:04:30]} Be7 {[%emt 0:00:30]} 11. Rad1 {[%emt 0:12:30]} d6 {[%emt 0:00:30]} 12. h3 {[%emt 0:03:30]} Be6 {[%emt 0:03:30]} 13. f4 {[%emt 0:10:30]} Rd8 {[%emt 0:00:30]} 14. f5 {[%emt 0:03:30]} Bc8 {[%emt 0:06:30]} 15. Bf2 {[%emt 0:05:30]} ({Avoid the trap} 15. Bxa7 $2 b6 $19) 15... O-O {[%emt 0:04:30]} 16. Ng3 {[%emt 0:02:30]} b6 {[%emt 0:04:30]} 17. Qf3 {[%emt 0:04:30]} Ba6 {[%emt 0:00:30]} 18. b3 {[%emt 0:00:30]} d5 {[%emt 0:00:30]} 19. exd5 {[%emt 0:17:09]} cxd5 {[%emt 0:00:00]} 20. Nxd5 {[%emt 0:02:00]} Nxd5 {[%emt 0:00:00]} 21. Rxd5 {[%emt 0:00:30]} Bb7 {[%emt 0:00:30]} 22. Ne4 {[%emt 0:00:21]} Rxd5 {[%emt 0:00:30]} 23. cxd5 {[%emt 0:00:49]} Bxd5 {[%emt 0:00:00]} 24. c4 {[%emt 0:00:03]} Bxe4 {[%emt 0:05:00]} 25. Qxe4 {[%emt 0:00:30]} Bxa3 {[%emt 0:00:30]} 26. Rd1 {[%emt 0:02:43]} Be7 $15 {[%emt 0:01:30]} 27. Rd5 {[%emt 0:02:28]} f6 {[%emt 0:00:30]} 28. Be3 {[%emt 0:02:48]} Rd8 {[%emt 0:01:30]} 29. Kh2 {[%emt 0:01:42]} Rd7 {[%emt 0:01:21]} 30. h4 {[%emt 0:01:44]} Qc6 {[%emt 0:03:53]} 31. Qg4 {[%emt 0:02:05]} Rxd5 {[%emt 0:00:32]} 32. Bxh6 {[%emt 0:00:50]} Bf8 {[%emt 0:00:34]} 33. cxd5 {[%emt 0:00:30]} Qxd5 {[%emt 0:00:00]} 34. h5 {[%emt 0:00:58]} Qxb3 {[%emt 0:02:30]} 35. Bd2 {[%emt 0:01:00]} Qd3 {[%emt 0:00:42]} 36. Bc1 {[%emt 0:00:29]} Qd4 {[%emt 0:03:59]} 37. Qg3 {[%emt 0:01:14]} Qd1 {[%emt 0:00:43]} 0-1

[Event "Turkey IS Bank Super League 2017"]
[Site "Darica-Kocaeli"]
[Date "2017.08.06"]
[Round "13"]
[White "Ozen, Deniz"]
[Black "Dolgun, Can"]
[Result "1-0"]
[ECO "B52"]
[WhiteElo "2351"]
[BlackElo "2104"]
[Annotator "NA"]
[PlyCount "89"]
[EventType "team-tourn"]
[EventCountry "TUR"]
[SourceTitle "playchess.com"]
[Source "ChessBase"]
[SourceQuality "1"]
[TimeControl "40/5400+30:1800+30"]

1. e4 {[%emt 0:00:30]} c5 {[%emt 0:01:00]} 2. Nf3 {[%emt 0:00:30]} d6 {[%emt 0:00:30]} 3. Bb5+ {[%emt 0:00:00]} Bd7 {[%emt 0:00:30]} 4. Bxd7+ {[%emt 0:00:00]} Qxd7 {[%emt 0:00:30]} 5. O-O {[%emt 0:00:30]} Nf6 {[%emt 0:00:00]} 6. Qe2 {[%emt 0:00:30]} Nc6 {[%emt 0:00:00]} 7. Rd1 {[%emt 0:00:30]} g5 {[%emt 0:00:00]} 8. c3 {[%emt 0:00:00]} g4 {[%emt 0:00:00]} 9. Nh4 {[%emt 0:00:00]} Qe6 {[%emt 0:00:30]} 10. d3 {[%emt 0:00:00]} d5 {[%emt 0:00:30]} 11. Bg5 {[%emt 0:00:00]} dxe4 {[%emt 0:12:30]} 12. Bxf6 {[%emt 0:01:30]} Qxf6 {[%emt 0:01:30]} 13. Qxg4 {[%emt 0:02:30]} exd3 {[%emt 0:01:30]} 14. Rxd3 {[%emt 0:04:30]} Ne5 {[%emt 0:01:30]} 15. Qa4+ {[%emt 0:00:30]} Qc6 {[%emt 0:02:30]} 16. Qxc6+ {[%emt 0:00:30]} Nxc6 {[%emt 0:00:00]} 17. Nd2 {[%emt 0:07:30]} Rd8 {[%emt 0:02:00]} 18. Rxd8+ {[%emt 0:02:30]} Kxd8 {[%emt 0:00:30]} 19. Ne4 {[%emt 0:00:30]} e6 {[%emt 0:02:30]} 20. Rd1+ {[%emt 0:00:30]} Ke8 {[%emt 0:08:30]} 21. Nf3 {[%emt 0:05:30]} Be7 {[%emt 0:02:30]} 22. Kf1 {[%emt 0:00:30]} Rg8 {[%emt 0:00:30]} 23. h3 {[%emt 0:00:30]} f5 {[%emt 0:07:30]} 24. Ned2 {[%emt 0:02:30]} Bf6 {[%emt 0:05:30]} 25. Nc4 {[%emt 0:02:30]} Ke7 {[%emt 0:00:30]} 26. a4 {[%emt 0:00:00]} b6 {[%emt 0:02:30]} 27. g3 {[%emt 0:01:00]} Rd8 {[%emt 0:05:30]} 28. Rxd8 {[%emt 0:01:30]} Kxd8 {[%emt 0:00:30]} 29. g4 {[%emt 0:00:30]} fxg4 {[%emt 0:06:30]} 30. hxg4 {[%emt 0:00:00]} h6 {[%emt 0:02:30]} 31. Ke2 {[%emt 0:03:00]} Bg5 {[%emt 0:15:30]} 32. Nce5 {[%emt 0:02:30]} Kc7 {[%emt 0:00:56]} 33. Nxc6 {[%emt 0:00:30]} Kxc6 {[%emt 0:00:08]} 34. Nxg5 {[%emt 0:00:30]} hxg5 {[%emt 0:00:30]} 35. Ke3 {[%emt 0:00:30]} Kd5 {[%emt 0:04:25]} 36. f4 {[%emt 0:00:30]} gxf4+ {[%emt 0:00:46]} 37. Kxf4 {[%emt 0:00:00]} e5+ {[%emt 0:01:00]} 38. Kf5 {[%emt 0:00:00]} e4 {[%emt 0:00:24]} 39. Kf4 {[%emt 0:00:30]} a6 {[%emt 0:00:30]} 40. g5 {[%emt 0:00:00]} b5 {[%emt 0:30:15]} 41. axb5 {[%emt 0:00:00]} axb5 {[%emt 0:00:30]} 42. g6 {[%emt 0:00:00]} Ke6 {[%emt 0:00:00]} 43. Kxe4 {[%emt 0:00:00]} b4 {[%emt 0:00:00]} 44. g7 {[%emt 0:00:30]} Kf7 {[%emt 0:00:00]} 45. c4 {[%emt 0:00:00]} 1-0

[Event "Turkey IS Bank Super League 2017"]
[Site "Darica-Kocaeli"]
[Date "2017.08.06"]
[Round "13"]
[White "Ozen, Bahadir"]
[Black "Tasdogen, Dincer"]
[Result "1/2-1/2"]
[ECO "B10"]
[WhiteElo "2315"]
[BlackElo "2215"]
[Annotator "NA"]
[PlyCount "74"]
[EventType "team-tourn"]
[EventCountry "TUR"]
[SourceTitle "playchess.com"]
[Source "ChessBase"]
[SourceQuality "1"]
[TimeControl "40/5400+30:1800+30"]

1. g3 {[%emt 0:00:30]} g6 {[%emt 0:01:00]} 2. Bg2 {[%emt 0:00:30]} Bg7 {[%emt 0:00:30]} 3. d3 {[%emt 0:00:30]} d5 {[%emt 0:01:30]} 4. Nf3 {[%emt 0:02:30]} e5 {[%emt 0:01:30]} 5. O-O {[%emt 0:01:30]} Ne7 {[%emt 0:01:30]} 6. Nbd2 {[%emt 0:01:30]} O-O {[%emt 0:01:30]} 7. e4 {[%emt 0:00:30]} c6 {[%emt 0:02:30]} 8. Re1 {[%emt 0:02:30]} d4 {[%emt 0:10:30]} 9. b4 {[%emt 0:05:30] LiveBook: 5 Games} Qc7 {[%emt 0:06:30]} 10. Bb2 {[%emt 0:03:30]} a5 {[%emt 0:03:30]} 11. a3 {[%emt 0:08:30]} axb4 {[%emt 0:03:30]} (11... c5 $11) 12. axb4 {[%emt 0:00:30]} Rxa1 {[%emt 0:00:30]} 13. Qxa1 {[%emt 0:00:30]} Na6 {[%emt 0:02:30]} 14. c3 {[%emt 0:03:30]} Rd8 {[%emt 0:06:30]} 15. Bf1 {[%emt 0:05:30]} ({Reject} 15. cxd4 Nxb4 16. Qb1 exd4 $15) 15... Bg4 {[%emt 0:07:30]} 16. h3 {[%emt 0:08:30]} (16. b5 $5 cxb5 17. cxd4 $14) 16... Bxf3 {[%emt 0:00:30]} 17. Nxf3 {[%emt 0:00:30]} Qb6 {[%emt 0:07:30]} 18. Rc1 {[%emt 0:04:30]} Nc7 {[%emt 0:06:30]} 19. cxd4 {[%emt 0:02:30]} Ra8 {[%emt 0:04:30]} 20. Qb1 {[%emt 0:01:30]} exd4 {[%emt 0:00:30]} 21. Rc4 {[%emt 0:04:30]} Nb5 {[%emt 0:01:30]} 22. e5 {[%emt 0:08:30]} Nd5 {[%emt 0:06:30]} 23. Nxd4 {[%emt 0:08:30]} Bxe5 {[%emt 0:02:30]} 24. Nxb5 {[%emt 0:03:30]} Bxb2 {[%emt 0:00:30]} 25. Qxb2 {[%emt 0:00:30]} Qxb5 {[%emt 0:00:30]} 26. Bg2 $11 {[%emt 0:01:30]} Nc7 {[%emt 0:01:33]} 27. Qf6 {[%emt 0:01:30]} Qa6 {[%emt 0:01:36]} 28. Qe7 {[%emt 0:00:37]} Ne6 {[%emt 0:00:54]} 29. Re4 {[%emt 0:06:43]} Qa1+ {[%emt 0:04:04]} 30. Kh2 {[%emt 0:00:34]} Ra2 {[%emt 0:00:29]} 31. Rxe6 {[%emt 0:13:33]} fxe6 {[%emt 0:00:34]} 32. Qe8+ {[%emt 0:00:30]} Kg7 {[%emt 0:00:30]} 33. Qe7+ {[%emt 0:00:00]} Kh6 {[%emt 0:00:00]} 34. Qh4+ {[%emt 0:01:06]} Kg7 {[%emt 0:00:00]} 35. Qe7+ {[%emt 0:00:25]} Kh6 {[%emt 0:00:00]} 36. Qh4+ {[%emt 0:00:31]} Kg7 {[%emt 0:00:05]} 37. Qe7+ {[%emt 0:00:30]} Kh6 {[%emt 0:00:00]} 1/2-1/2

[Event "Turkey IS Bank Super League 2017"]
[Site "Darica-Kocaeli"]
[Date "2017.08.07"]
[Round "13"]
[White "Burcu, Cagatay"]
[Black "Karagollu, Ahmet"]
[Result "1-0"]
[ECO "E63"]
[WhiteElo "2263"]
[BlackElo "2083"]
[Annotator "ChessBase"]
[PlyCount "97"]
[EventType "team-tourn"]
[EventCountry "TUR"]
[SourceTitle "playchess.com"]
[Source "ChessBase"]
[SourceQuality "1"]
[TimeControl "40/5400+30:1800+30"]

1. d4 {[%emt 0:01:30]} Nf6 {[%emt 0:01:00]} 2. Nf3 {[%emt 0:00:00]} g6 {[%emt 0:00:30]} 3. c4 {[%emt 0:00:00]} Bg7 {[%emt 0:00:30]} 4. g3 {[%emt 0:00:00]} O-O {[%emt 0:00:30]} 5. Bg2 {[%emt 0:00:00]} d6 {[%emt 0:00:30]} 6. O-O {[%emt 0:00:00]} Nc6 {[%emt 0:01:30]} 7. Nc3 {[%emt 0:00:00]} a6 {[%emt 0:00:30]} 8. Bf4 {[%emt 0:00:30]} Bd7 {[%emt 0:00:00]} 9. Rc1 {[%emt 0:01:30]} Re8 {[%emt 0:00:00]} 10. d5 {[%emt 0:13:30]} Na5 {[%emt 0:03:30]} 11. Nd2 {[%emt 0:05:30]} c5 {[%emt 0:03:30]} 12. dxc6 {[%emt 0:13:30]} Nxc6 {[%emt 0:01:30]} 13. Nd5 {[%emt 0:00:30]} Rc8 {[%emt 0:10:30]} 14. Be3 {[%emt 0:09:30]} Nxd5 {[%emt 0:02:30]} 15. cxd5 {[%emt 0:00:30]} Nd4 {[%emt 0:02:30]} 16. Nc4 {[%emt 0:01:30]} b5 {[%emt 0:18:30]} 17. Bxd4 {[%emt 0:00:30]} bxc4 {[%emt 0:00:30]} 18. Bxg7 {[%emt 0:00:30]} Kxg7 {[%emt 0:00:30]} 19. Qd4+ {[%emt 0:00:30]} Kg8 {[%emt 0:00:30]} 20. Rxc4 {[%emt 0:00:00]} Rxc4 {[%emt 0:00:30]} 21. Qxc4 {[%emt 0:00:00]} Qb6 {[%emt 0:00:30]} 22. b3 {[%emt 0:01:30]} Qa5 {[%emt 0:01:30]} 23. a4 {[%emt 0:06:30]} Rb8 {[%emt 0:04:30]} 24. Be4 {[%emt 0:09:30]} Rb4 {[%emt 0:01:30]} 25. Qc2 {[%emt 0:04:30]} Qb6 {[%emt 0:01:30]} 26. Bd3 {[%emt 0:06:30]} Rxb3 {[%emt 0:00:30]} 27. Bb5 {[%emt 0:02:30]} Rxb5 {[%emt 0:07:30]} 28. axb5 {[%emt 0:00:00]} Bxb5 {[%emt 0:01:30]} 29. Qe4 {[%emt 0:01:00]} Qc7 {[%emt 0:00:30]} 30. h4 {[%emt 0:03:30]} h5 31. Rb1 Kf8 32. Qe3 Kg7 33. Rc1 Qd7 34. Qd4+ Kh7 35. Qe4 Kg7 36. Kg2 Kg8 37. Rc3 Kg7 38. f3 Qb7 39. Re3 Kf8 40. Qd4 Kg8 41. g4 hxg4 42. Qxg4 Qxd5 43. Rxe7 Kf8 44. Re3 Kg7 45. Qb4 Qc4 46. Qb2+ Kh7 47. Qf6 Bd7 48. Re4 Qd5 49. Re7 1-0

[Event "Turkey IS Bank Super League 2017"]
[Site "Darica-Kocaeli"]
[Date "2017.08.06"]
[Round "13"]
[White "Yelken, Mustafa"]
[Black "Akcan, Umit"]
[Result "1/2-1/2"]
[ECO "C15"]
[WhiteElo "2171"]
[BlackElo "1951"]
[Annotator "NA"]
[PlyCount "97"]
[EventType "team-tourn"]
[EventCountry "TUR"]
[SourceTitle "playchess.com"]
[Source "ChessBase"]
[SourceQuality "1"]
[TimeControl "40/5400+30:1800+30"]

1. e4 {[%emt 0:00:30]} e6 {[%emt 0:02:00]} 2. d4 {[%emt 0:00:30]} d5 {[%emt 0:00:00]} 3. Nc3 {[%emt 0:00:30]} Bb4 {[%emt 0:01:00]} 4. Nge2 {[%emt 0:01:30]} dxe4 {[%emt 0:02:30]} 5. a3 {[%emt 0:00:30]} Be7 {[%emt 0:01:30]} 6. Nxe4 {[%emt 0:00:30]} Nf6 {[%emt 0:00:30]} 7. N2g3 {[%emt 0:00:00]} O-O {[%emt 0:01:30]} 8. c3 {[%emt 0:07:00]} Nxe4 {[%emt 0:00:30]} 9. Nxe4 {[%emt 0:00:30]} Qd5 {[%emt 0:00:00]} 10. Qf3 {[%emt 0:04:30]} f5 {[%emt 0:02:00]} 11. Nd2 {[%emt 0:01:30]} c5 {[%emt 0:00:30]} 12. Bc4 {[%emt 0:03:30]} Qxf3 {[%emt 0:01:30]} 13. Nxf3 {[%emt 0:00:30]} Nc6 {[%emt 0:00:30] [#]} 14. dxc5 $1 {[%emt 0:01:30]} Bxc5 {[%emt 0:00:30]} 15. O-O {[%emt 0:13:30]} h6 {[%emt 0:11:30]} 16. h4 {[%emt 0:13:30]} Bd6 {[%emt 0:04:30]} 17. Be3 {[%emt 0:11:30]} Rd8 $16 {[%emt 0:05:30]} 18. Rfe1 {[%emt 0:09:30]} Kh7 {[%emt 0:00:30]} 19. Bd4 {[%emt 0:06:30]} Nxd4 {[%emt 0:05:30]} 20. Nxd4 {[%emt 0:00:30]} e5 {[%emt 0:00:30]} 21. Nb5 {[%emt 0:00:30]} Bb8 {[%emt 0:00:30]} 22. Rad1 {[%emt 0:01:30]} Rd7 {[%emt 0:04:30]} 23. Rxd7 {[%emt 0:00:30]} Bxd7 {[%emt 0:00:30]} 24. Rd1 {[%emt 0:06:21]} Bxb5 {[%emt 0:00:00]} 25. Bxb5 {[%emt 0:01:32]} e4 {[%emt 0:06:00]} 26. Rd7 {[%emt 0:02:34]} a6 {[%emt 0:01:30]} 27. Bc4 {[%emt 0:00:30]} b5 {[%emt 0:00:30]} 28. Bd5 {[%emt 0:00:30]} Ra7 {[%emt 0:00:30]} 29. Bb7 {[%emt 0:00:30]} Kg6 {[%emt 0:05:30]} 30. b3 {[%emt 0:11:42]} a5 {[%emt 0:00:30]} 31. a4 {[%emt 0:00:30]} bxa4 {[%emt 0:00:30]} 32. bxa4 {[%emt 0:00:30]} Be5 {[%emt 0:00:30]} 33. c4 {[%emt 0:00:30]} Bd4 {[%emt 0:00:30]} 34. Kf1 {[%emt 0:00:49]} Kf6 {[%emt 0:07:30]} 35. Rc7 {[%emt 0:00:30]} Ke6 {[%emt 0:00:00]} 36. Bd5+ {[%emt 0:00:00]} Ke5 {[%emt 0:00:00]} 37. Rc8 {[%emt 0:00:00]} Re7 {[%emt 0:00:00]} 38. Ke2 {[%emt 0:00:00]} f4 {[%emt 0:00:00]} 39. Rb8 {[%emt 0:00:00]} Kd6 {[%emt 0:00:00]} 40. Rb5 {[%emt 0:00:00]} Bc3 {[%emt 0:21:00]} 41. Ba8 {[%emt 0:06:32]} Re5 {[%emt 0:02:30]} 42. Bd5 {[%emt 0:08:24]} e3 {[%emt 0:00:30]} 43. fxe3 {[%emt 0:02:34]} Rxe3+ {[%emt 0:03:30]} 44. Kd1 {[%emt 0:00:30]} Bb4 {[%emt 0:00:30]} 45. Rb7 {[%emt 0:00:30]} Re7 {[%emt 0:01:30]} 46. Rb8 {[%emt 0:02:38]} Re1+ {[%emt 0:00:30]} 47. Kc2 {[%emt 0:00:30]} Re2+ {[%emt 0:00:30]} 48. Kd3 {[%emt 0:00:09]} Re3+ {[%emt 0:00:30]} 49. Kd4 {[%emt 0:00:26]} 1/2-1/2